Cogmind - Beta 13 @@@ ROGUE MODE // 2024.04.02 @ 14:47:03 Player: lazy_engineer Result: Self-destructed Performance ------------- Evolutions (1) 500 Regions Visited (3) 600 Robots Destroyed (28) 140 Value Destroyed (843) 843 Prototype IDs (0) 0 Alien Tech Used (0) 0 Bonus (0) 0 TOTAL SCORE: 2083 Bonus ------- None Cogmind --------- Core Integrity 144/400 Matter 0/300 Energy 160/160 System Corruption 1% Temperature Cool (0) Movement Walking (190) Ox1 Location -9/Storage Parts ------- > --- POWER (1) -------- Light Nuclear Core > --- PROPULSION (2) --- Aluminum Leg Aluminum Leg > --- UTILITY (4) ------ Small Storage Unit Signal Interpreter Drone Bay (1/2) Drone Bay (0/2) > --- WEAPON (2) ------- Rocket Launcher Rocket Launcher > --- INVENTORY (8) ---- Light Nuclear Core Terrain Scan Processor Drone Bay (2/2) Drone Bay (1/2) Improved Light Cannon Improved Light Cannon Improved Light Cannon Mining Laser Peak State ------------ > --- POWER ------------ Light Nuclear Core > --- PROPULSION ------- Aluminum Leg Aluminum Leg > --- UTILITY ---------- Small Storage Unit Signal Interpreter Drone Bay Drone Bay > --- WEAPON ----------- Improved Light Cannon Improved Light Cannon > --- INVENTORY -------- Light Nuclear Core Drone Bay Drone Bay Improved Light Cannon Rocket Launcher Rocket Launcher Mining Laser [Rating: 23] Favorites ----------- Power Light Nuclear Core Engine Ion Engine Power Core Light Nuclear Core Propulsion Aluminum Leg Treads Light Treads Leg Aluminum Leg Wheel Wheel Utility Small Storage Unit Device Improved Terrain Scanner Storage Small Storage Unit Processor Signal Interpreter Weapon Light Assault Rifle Energy Gun Particle Gun Ballistic Gun Light Assault Rifle Ballistic Cannon Improved Light Cannon Launcher Rocket Launcher Special Weapon Mining Laser Build | -11 -10 -9 -9 ------- Run | Yrd Mat Mat Sto Slots Evolved 2 | . . 2 . Power . | . . . . Propulsion . | . . . . Utility 2 | . . 2 . Weapon . | . . . . Parts Attached 45 | 7 9 14 15 Power 4 | 1 2 1 . Engine 3 | 1 2 . . Core 1 | . . 1 . Reactor . | . . . . Propulsion 6 | 2 2 2 . Treads 1 | 1 . . . Leg 2 | . . 2 . Wheel 3 | 1 2 . . Hover . | . . . . Flight . | . . . . Utility 17 | 2 2 7 6 Device 15 | 1 1 7 6 Storage 1 | 1 . . . Processor 1 | . 1 . . Hackware . | . . . . Protection . | . . . . Artifact . | . . . . Weapon 18 | 2 3 4 9 Energy Gun 4 | . . 2 2 Energy Cannon . | . . . . Ballistic Gun 5 | 2 3 . . Ballistic Cannon 3 | . . . 3 Launcher 2 | . . . 2 Special Weapon 4 | . . 2 2 Impact Weapon . | . . . . Slashing Weapon . | . . . . Piercing Weapon . | . . . . Special Melee Weapon . | . . . . Unidentified Prototypes . | . . . . Parts Lost 14 | . 1 11 2 Power 2 | . 1 1 . Propulsion 2 | . . 2 . Utility 6 | . . 4 2 Weapon 4 | . . 4 . Highest Loss Streak 9 | . 1 9 1 To Critical Strikes . | . . . . Average Slot Usage (%) 96 | . 99 96 97 Engine 5 | . 14 8 . Core 5 | . . 2 11 Leg 10 | . . 5 22 Wheel 10 | . 23 15 . Device 19 | . 14 21 19 Storage 11 | . 14 11 11 Processor 9 | . . 11 11 Energy Gun 2 | . . 4 1 Ballistic Gun 11 | . 28 15 . Ballistic Cannon 2 | . . . 7 Launcher 3 | . . . 10 Naked Turns . | . . . . Heaviest Build 30 | 12 14 17 30 Greatest Support 20 | 10 20 20 20 Greatest Overweight (x) 4 | 1 1 4 1 Average Overweight (x) . | . . . . Largest Inventory Capacity 8 | 8 8 8 8 Average Capacity 7 | 5 8 8 8 Most Carried 8 | 5 8 8 8 Average Carried 6 | 2 7 5 7 Final Capacity 8 | 8 8 8 8 Final Carried 8 | 5 8 4 8 Class Distribution -------------------- 52% | Scavenger-Mutant 47% | Mutant Dominant Class ---------------- Mutant | -10/Materials Scavenger-Mutant | -9/Materials Mutant | -9/Storage Resources | -11 -10 -9 -9 ----------- Run | Yrd Mat Mat Sto Matter Collected 965 | 355 118 187 305 Remotely . | . . . . Salvage Created 872 | 158 166 302 246 Parts 62 | 15 14 20 13 Haulers Intercepted . | . . . . Recyclers Shooed . | . . . . Parts Field Recycled . | . . . . Retrieved Matter . | . . . . Parts Self-Destructed . | . . . . Prevented . | . . . . Kills | -11 -10 -9 -9 ------- Run | Yrd Mat Mat Sto Combat Hostiles Destroyed 20 | . 4 8 8 Guns 11 | . 4 7 . Cannons 9 | . . 1 8 Classes Destroyed 7 | 2 1 . 4 Worker 1 | . . . 1 Builder 1 | . . . 1 Tunneler 5 | 5 . . . Recycler 1 | 1 . . . Grunt 15 | . 4 8 3 Duelist 1 | . . . 1 Sentry 4 | . . . 4 Best Kill Streak 3 | 3 2 2 3 Combat Bots Only 3 | . 2 2 3 Max Kills in Single Turn 2 | 1 1 1 2 Gunslinging . | . . . . Exploded . | . . . . Melee . | . . . . Uniques/NPCs Destroyed . | . . . . Combat | -11 -10 -9 -9 -------- Run | Yrd Mat Mat Sto Hostile Shots Fired 159 | . 35 85 39 Missed 37 | . 10 17 10 Damage Taken 1472 | . 327 768 377 Core 328 | . 72 186 70 Absorbed by Shields 196 | . . 86 110 Core Remaining (%) 85 | 100 71 . . Volleys Fired 123 | 23 26 32 42 Largest 2 | 2 2 2 2 Hottest 120 | 40 40 120 104 Shots Fired 225 | 46 52 49 78 Gun 150 | 46 52 47 5 Cannon 41 | . . . 41 Launcher 27 | . . . 27 Special 7 | . . 2 5 Kinetic 151 | 46 52 12 41 Thermal 47 | . . 37 10 Explosive 27 | . . . 27 Electromagnetic . | . . . . Robot Hit Streak 15 | 11 15 11 15 Robot Miss Streak 4 | 4 3 3 2 Penetration Max . | . . . . Secondary Targets . | . . . . Shots Hit Robots 132 | 26 36 37 33 Core Hits 48 | 9 10 18 11 Critical Kills . | . . . . Critical Parts Destroyed . | . . . . Critical Strikes 2 | . . . 2 Blast 2 | . . . 2 Melee Attacks . | . . . . Impact . | . . . . Slashing . | . . . . Piercing . | . . . . Sneak Attacks . | . . . . Combat Hostiles . | . . . . Follow-up Attacks . | . . . . Damage Inflicted 1886 | 277 386 465 758 Guns 1202 | 277 386 453 86 Cannons 604 | . . . 604 Explosions 68 | . . . 68 Melee . | . . . . Ramming . | . . . . Kinetic 1346 | 277 386 79 604 Thermal 472 | . . 386 86 Explosive 68 | . . . 68 Electromagnetic . | . . . . Impact . | . . . . Slashing . | . . . . Piercing . | . . . . Highest Corruption 1 | . . . 1 Average Corruption 1 | . . . 1 Corruption Purged . | . . . . Corruption Blocked . | . . . . Effects 5 | . . . 5 Message Errors 1 | . . . 1 Matter Fused 1 | . . . 1 Heat Flow Errors 1 | . . . 1 Data Loss (minor) 2 | . . . 2 Overload Shots . | . . . . Overflow Damage 5 | . . . 5 Projectiles . | . . . . Explosions 5 | . . . 5 Melee . | . . . . Knockbacks 3 | . . . 3 Impact . | . . . . Kinetic 3 | . . . 3 Secondary . | . . . . Self-Inflicted Damage 42 | . . . 42 Shots 4 | . . . 4 Rammed . | . . . . Targets Rammed . | . . . . Kicked . | . . . . Crushed . | . . . . Highest Temperature 255 | . 24 76 255 Average Temperature 43 | . 8 18 58 Received Heat Transfer 672 | . 177 400 95 Siege Activations . | . . . . Robots Corrupted . | . . . . Combat Hostiles . | . . . . Parts Fried . | . . . . Impact Corruptions . | . . . . Robots Melted . | . . . . Combat Hostiles . | . . . . Parts Melted 2 | . . 1 1 Heat Transferred 1077 | . . 892 185 Parts Sabotaged . | . . . . Parts Stolen . | . . . . Parts Stripped . | . . . . Power Chain Reactions . | . . . . Alert | -11 -10 -9 -9 ------- Run | Yrd Mat Mat Sto Peak Influence 226 | 30 196 112 226 Initial 82 | . 19 82 43 Average 66 | 14 90 35 114 Maximum Alert Level 1 | . . . 1 Low Security (%) 93 | 100 100 100 79 Level 1 6 | . . . 20 Level 2 . | . . . . Level 3 . | . . . . Level 4 . | . . . . Level 5 . | . . . . High Security . | . . . . Max Security . | . . . . Squads Dispatched 1 | . 1 . . Investigation 1 | . 1 . . Extermination . | . . . . Reinforcement . | . . . . Assault . | . . . . Garrison . | . . . . Intercept . | . . . . Searches Triggered . | . . . . Construction Impeded . | . . . . Haulers Reinforced . | . . . . Active Scanning Responses . | . . . . Cargo Convoy Interrupts . | . . . . Stealth | -11 -10 -9 -9 --------- Run | Yrd Mat Mat Sto Distress Signals . | . . . . Communications Jammed . | . . . . Distress Signals . | . . . . Times Spotted 30 | . 7 11 12 Peak Tracking Total 3 | . 3 3 3 Tactical Retreats 3 | . 2 . 1 Traps | -11 -10 -9 -9 ------- Run | Yrd Mat Mat Sto Traps Triggered 4 | . 3 . 1 Indirectly . | . . . . Trap Hack Attempts . | . . . . Triggered . | . . . . Disarmed . | . . . . Reprogrammed . | . . . . Reused . | . . . . Traps Extracted . | . . . . Installed . | . . . . Triggered . | . . . . Machines | -11 -10 -9 -9 ---------- Run | Yrd Mat Mat Sto Machines Disabled 2 | . . . 2 Max in Single Turn 2 | . . . 2 Machines Repaired . | . . . . Machines Dismantled . | . . . . Machines Sabotaged . | . . . . Overloaded Fab Kills . | . . . . Hacking | -11 -10 -9 -9 --------- Run | Yrd Mat Mat Sto Machines Accessed 9 | . 2 3 4 Terminals 8 | . 2 2 4 Fabricators . | . . . . Repair Stations . | . . . . Recycling Units . | . . . . Scanalyzers 1 | . . 1 . Garrison Access . | . . . . Total Hacks 19 | . 4 5 10 Successful 10 | . 2 4 4 Failed 9 | . 2 1 6 Catastrophic 3 | . 1 . 2 Database Lockouts . | . . . . Manual 2 | . . . 2 Terminals 17 | . 4 3 10 Fabricators . | . . . . Repair Stations . | . . . . Recycling Units . | . . . . Scanalyzers 2 | . . 2 . Garrison Access . | . . . . Terminal Hacks 8 | . 2 2 4 Record 2 | . . 2 . Open Door 1 | . . . 1 Branch Access Points 2 | . 1 . 1 Alert Level 1 | . . . 1 Locate Traps 1 | . . . 1 Zone Layout 1 | . 1 . . Fabricator Hacks . | . . . . Repair Station Hacks . | . . . . Recycling Unit Hacks . | . . . . Scanalyzer 2 | . . 2 . Insert Component 1 | . . 1 . Analyze 1 | . . 1 . Garrison Access Hacks . | . . . . Unauthorized Hacks . | . . . . Terminals . | . . . . Fabricators . | . . . . Repair Stations . | . . . . Recycling Units . | . . . . Scanalyzers . | . . . . Garrison Access . | . . . . Data Cores Recovered . | . . . . Used . | . . . . Hacking Detections 7 | . 2 2 3 Full Trace Events 2 | . 1 . 1 Feedback Events . | . . . . Feedback Blocked . | . . . . Robot Schematics Acquired . | . . . . Robots Built . | . . . . Authchips . | . . . . Time . | . . . . Total Robot Build Rating . | . . . . Part Schematics Acquired 1 | . . 1 . Parts Built . | . . . . Authchips . | . . . . Time . | . . . . Total Part Build Rating . | . . . . Parts Repaired . | . . . . Time . | . . . . Parts Recycled . | . . . . Recycled Matter . | . . . . Retrieved Matter . | . . . . Retrieved Components . | . . . . Parts Scanalyzed 1 | . . 1 . Part Schematics Acquired 1 | . . 1 . Parts Damaged . | . . . . Bothacking | -11 -10 -9 -9 ------------ Run | Yrd Mat Mat Sto Used RIF Installer . | . . . . Robots Hacked . | . . . . Non-combat . | . . . . Combat . | . . . . Robot Hacks Applied . | . . . . Relay Couplers Released . | . . . . Fabnet Peak Effective % . | . . . . Robots Rewired . | . . . . Allies Hacked . | . . . . Hacks Repelled . | . . . . Allies | -11 -10 -9 -9 -------- Run | Yrd Mat Mat Sto Total Allies . | . . . . Largest Group . | . . . . Highest-Rated Group . | . . . . Highest-Rated Ally . | . . . . Total Orders 12 | . . . 12 EXPLORE 8 | . . . 8 RETURN 4 | . . . 4 Ally Attacks . | . . . . Total Damage . | . . . . Kills . | . . . . Allies Corrupted . | . . . . Allies Melted . | . . . . Intel | -11 -10 -9 -9 ------- Run | Yrd Mat Mat Sto Robot Analysis Total . | . . . . Derelict Logs Recovered . | . . . . Drone Launches 16 | . . . 16 Drone Recoveries 12 | . . . 12 Exploration | -11 -10 -9 -9 ------------- Run | Yrd Mat Mat Sto Turns Passed 2788 | 173 275 1380 960 Spaces Moved 943 | 112 163 249 419 Core 13 | 4 . 9 . Treads . | . . . . Legs 636 | . . 217 419 Wheels 294 | 108 163 23 . Hover . | . . . . Flight . | . . . . Fastest Speed 50 | 50 80 80 120 Average Speed 125 | 80 83 118 158 Slowest Speed 250 | 95 95 250 190 Overloaded Moves . | . . . . Propulsion Burnouts . | . . . . Robots Hopped . | . . . . Cave-ins Triggered . | . . . . Exploration Rate (%) 29 | 4 27 15 70 Regions Visited 3 Branch Regions 1 Pre-discovered Areas . | . . . . Known Exits Taken 2 | . 1 1 . Unknown Exits Taken 1 | 1 . . . Scrap Searched . | . . . . Spaces Dug 2 | . . . 2 Terrain Destroyed 65 | . . 1 64 Melee . | . . . . Projectile 6 | . . 1 5 AOE 59 | . . . 59 Terrain Rammed . | . . . . Walls Destroyed . | . . . . Machines Disabled . | . . . . Actions | -11 -10 -9 -9 --------- Run | Yrd Mat Mat Sto Total 2309 | 152 252 1284 621 Wait 1163 | . 48 982 133 Move 940 | 111 162 248 419 Hop . | . . . . Pick Up 33 | 11 5 8 9 Fast Attach 7 | 1 5 . 1 Attach 21 | 6 1 12 2 Detach . | . . . . Swap 17 | . 3 2 12 Drop 5 | . 2 . 3 Fire 123 | 23 26 32 42 Melee . | . . . . Ram . | . . . . Kick . | . . . . Crush . | . . . . Escape Stasis . | . . . . Rewire . | . . . . Trap . | . . . . Miscellaneous . | . . . . Route ------- -11/Scrapyard -10/Materials (discovered 2 exits: *Mat / Min) -9/Materials -9/Storage (discovered 1 exit: Rec) History --------- Turn | Location | Event 15 | -11/Scrapyard | Discovered new exit (range 16) 174 | -11/Scrapyard | Entered Materials 295 | -10/Materials | Identified exit to Mines 301 | -10/Materials | Build established: Mutant 442 | -10/Materials | Discovered new exit (range 4) 448 | -10/Materials | Identified exit to Materials 449 | -10/Materials | Entered another Materials area 449 | -9/Materials | Evolved 2 slots: Utility x2 737 | -9/Materials | Build established: Scavenger-Mutant 1494 | -9/Materials | Lost 9 parts (1p2n2u4w) 1790 | -9/Materials | Discovered new exit (range 16) 1828 | -9/Materials | Identified exit to Storage 1829 | -9/Materials | Entered Storage 1930 | -9/Storage | Core integrity fell below 50% 2033 | -9/Storage | Identified exit to Recycling 2246 | -9/Storage | Build established: Mutant 2789 | -9/Storage | Self-destructed Last Messages --------------- 02474_ System corrupted: Component data lost. 02477_ K-01 Serf collects debris. 02479_ U-05 Engineer lays Concrete. 02481_ U-05 Engineer builds a Wall. 02484_ Destroyed Terrain Scanner. 02484_ U-05 Engineer destroyed. 02484_ K-01 Serf destroyed. 02485_ The unstable cave ceiling collapses. 02493_ Acquired 1 matter. 02494_ The unstable cave ceiling collapses. 02627_ System corrupted: Matter fused (-4). 02672_ Acquired Terrain Scan Processor. 02689_ K-01 Serf collects debris. 02718_ System corrupted: Heat flow error (+276). 02756_ K-01 Serf collects debris. 02763_ Drone released from Drone Bay. 02767_ Drone destroyed. 02778_ K-01 Serf collects debris. 02778_ Drone retrieved by Drone Bay. 02789_ Connecting with Repair Station... Map ----- +----------------------------------------------------+ | | | | | | | ?#####???????????????????????????????############# | | ?# !#???????????????????????????????# | | ?# !#???????????????????????????????# """ """ | | ## !#?????????????##????????????????# """ """ | | !#?????????????# #########???????# """ """ | | # ##?????????????# * #???????# | | ##???????###### ###############+##### | | # ############ # """ """ # | | # """ """ + | | # """ """ # | | #####+###### # """ """ # #############+##### | | # #???## ## """ """ # # #?# ^ | | """" #????# ## + + """"" ??# | | # ""??" ###### ###+######## # """"" ??# | | # ""???" + ^#######%# """""???# """" | | # "???"" ###### % #? ??# """" | | # "??"" ######+###+#+####### #?# #####?# """" | | # """" ## # # ########### """" | | + ## # """n""" # ## # | | ######+##### # """ """ # ## # | | #??#" # """ """ # ## """" ######### | | #??#T # # + "??"" ###?????? | | #??#" # "@"" # # "???"" #???????? | | " #??## # "R"" # # ""???" #???????? | | " #???# """ # """ # + ""??" #???????? | | " ### #???# """ ############## """" #???????? | | #?# #???# """ #????????????# #???????? | | #?# #???# #????????????#####/####???????? | | ###+######## ####???????????????# +?????????? | | # #???###??????????????????# #?????????? | | # * ##????????#####???????????# #?????????? | | + ########### ###########?# #?????????? | | # """ # # # #?# +?????????? | | ## # """ # """ # # #?# #?????????? | | ?# # """ # "?"""" # # """ """ ??# #?????????? | | ## # # "????" # # """ """ #?# #?????????? | | ## ####### "????" + + """ """ #?# #?????????? | | # ###### """"?" # # #?# #??##????## | | + T + """ # # #?# #? ???= | | # ###### # # #?# +? ?? [ ! | | ## ##?##########+### ############# # | | ## #??# # ## ## # | | ## #??# # # """" ## " ! | | ?# #??# # T ## """" ## # = | | ?# #??? # ## """" [## # = | | ?# #????? # ## """" ## % #?######### | | ?# #?????? ## ### ## #?????????? | +----------------------------------------------------+ Best States ------------- Heat Dissipation 42 Energy Generation 14 Energy Capacity 250 Matter Stores 300 Matter Capacity 300 Sight Range 16 Terrain Scan Range 16 Terrain Scan Density 10 Evasion (%) 55 Item Schematics ----------------- Shield Generator | -9/Materials | Scanalyzed Robot Schematics ------------------ None Fabricated ------------ Nothing Alien Tech Used ----------------- None Achievements -------------- None Challenges ------------ None Game ------ Seed AblativeLinearStick Manual? 0 Play Time 00:23:44 Cumulative 13.9 hours Start 2024.04.02 @ 01:36:20 End 2024.04.02 @ 14:47:03 Sessions 2 Manual Loads 0 Difficulty Rogue Special Mode None Game No. 26 Rogue 26 Adventurer 0 Explorer 0 Win Type - Total 0 Types 0/0/0/0/0/0/0/0/0 Lore% 15 Gallery% 17 Achievement% 17 Wizard Run 0 Options --------- Layout 0 ASCII 0 Keyboard 0 Movement Mouse Keybinds 0 Fullscreen 1 Font 24/Smallcaps Map View 76x50 Zoom Use 0% Tactical HUD 1 Map Filters NONE Filters NONE Steam 1 RUN: 42c6317c-cfe8-4a3d-9d77-54300bf49332